bitfinex/quotes_SOLUSD_20240822
["timestamp","ask_amount","ask_price","bid_price","bid_amount"]
[1724350849152,6.0422,143.73,143.65,65.0]
[1724350849866,15.8945,143.71,143.65,45.0]
[1724350851659,15.8945,143.71,143.66,1.39182727]
[1724350852267,15.8945,143.71,143.67,20.0]
[1724350852596,15.8945,143.71,143.68,45.0]
[1724350853675,15.8945,143.71,143.65,52.63]
[1724350853863,15.8945,143.71,143.66,45.0]
[1724350854878,6.0422,143.73,143.67,21.39168686]
[1724350855084,6.0422,143.73,143.68,45.0]
[1724350855251,6.0422,143.73,143.69,1.39158833]
[1724350855752,6.0422,143.73,143.68,45.0]
[1724350857373,6.0422,143.73,143.68,46.39159799]
[1724350857770,6.0422,143.73,143.68,45.0]
[1724350862878,6.0422,143.73,143.65,20.0]
[1724350863089,6.0422,143.73,143.64,20.0]
[1724350863261,6.0422,143.73,143.66,1.74229601]
[1724350863458,6.958,143.72,143.64,20.0]
[1724350863672,45.6298,143.73,143.64,20.0]
[1724350864196,38.6722,143.73,143.64,20.0]
[1724350864696,6.0422,143.73,143.65,66.39191599]
[1724350865292,6.0422,143.73,143.65,99.02191599]
[1724350866071,13.0,143.73,143.65,45.0]
[1724350867504,6.0422,143.73,143.66,1.39190318]
[1724350867797,6.0422,143.73,143.66,32.63]
[1724350868004,6.0422,143.73,143.67,65.0]
[1724350868301,6.0422,143.73,143.67,45.0]
[1724350868479,6.0422,143.73,143.66,45.0]
[1724350871495,6.0422,143.73,143.67,20.0]
[1724350871676,6.0422,143.73,143.68,45.0]
[1724350871877,6.0422,143.73,143.68,46.39158085]
[1724350872086,6.0422,143.73,143.68,45.0]
[1724350873783,6.0422,143.73,143.65,20.0]
[1724350873993,1.73966054,143.72,143.64,20.0]
[1724350874272,6.0422,143.73,143.65,1.39190629]
[1724350874497,13.04,143.72,143.64,20.0]
[1724350875696,6.0422,143.73,143.66,20.0]
[1724350876389,6.0422,143.73,143.67,45.0]
[1724350876715,15.3331,143.72,143.64,20.0]
[1724350877007,15.3331,143.72,143.63,27.27600075]
[1724350878276,15.3331,143.72,143.64,45.0]
[1724350878691,22.291,143.72,143.64,45.0]
[1724350880320,15.3331,143.72,143.64,45.0]
[1724350881398,15.3331,143.72,143.65,20.0]
[1724350881607,15.3331,143.72,143.66,45.0]
[1724350881807,15.3331,143.72,143.67,1.39177571]
[1724350882109,15.3331,143.72,143.66,77.59]
[1724350883011,15.3331,143.72,143.66,45.0]
[1724350883207,17.07262867,143.72,143.63,27.27600075]
[1724350883405,17.07262867,143.72,143.64,20.0]
[1724350884201,15.3331,143.72,143.64,20.0]
[1724350884590,15.3331,143.72,143.65,45.0]
[1724350886919,1.73977345,143.71,143.65,45.0]
[1724350887121,22.2912,143.72,143.65,45.0]
[1724350887312,22.2912,143.72,143.64,45.0]
[1724350888007,6.9584,143.71,143.64,45.0]
[1724350889417,22.2912,143.72,143.64,45.0]
[1724350889923,15.3331,143.72,143.65,20.0]
[1724350890095,15.3331,143.72,143.66,45.0]
[1724350890293,15.3331,143.72,143.67,1.39174411]
[1724350891003,15.3331,143.72,143.67,20.0]
[1724350891314,15.3331,143.72,143.68,45.0]
[1724350894305,15.3331,143.72,143.64,27.27555097]
[1724350894614,15.3331,143.72,143.65,20.0]
[1724350895712,15.3331,143.72,143.66,45.0]
[1724350902216,22.291,143.72,143.64,7.27555097]
[1724350902534,13.04,143.69,143.62,20.0]
[1724350903620,13.04,143.69,143.63,20.0]
[1724350904014,15.3331,143.72,143.66,13.04]
[1724350904244,15.3331,143.72,143.68,13.04]
[1724350904433,15.3331,143.72,143.67,45.0]
[1724350906526,15.3331,143.72,143.66,45.0]
[1724350908017,15.3331,143.72,143.64,8.02849677]
[1724350908630,15.3331,143.72,143.62,52.58]
[1724350909429,15.3331,143.72,143.65,20.0]
[1724350910035,15.3331,143.72,143.66,45.0]
[1724350911059,15.3331,143.72,143.65,20.0]
[1724350911060,32.58,143.71,143.63,20.0]
[1724350911223,32.58,143.71,143.61,7.2776539]
[1724350911224,38.7751,143.69,143.61,7.2776539]
[1724350911421,1.74018037,143.68,143.61,7.2776539]
[1724350911744,16.4325,143.67,143.6,28.02849677]
[1724350912930,16.4325,143.67,143.6,20.0]
[1724350914161,16.4325,143.67,143.61,45.0]
[1724350915336,16.4325,143.67,143.6,45.0]
[1724350916331,16.4325,143.67,143.6,65.0]
[1724350919931,16.4325,143.67,143.61,32.58]
[1724350920131,16.4325,143.67,143.62,45.0]
[1724350920364,16.4325,143.67,143.62,65.0]
[1724350921368,16.4325,143.67,143.63,33.97206128]
[1724350921576,16.4325,143.67,143.64,45.0]
[1724350921862,6.1951,143.69,143.65,20.0]
[1724350922070,6.1951,143.69,143.66,45.0]
[1724350929246,6.1951,143.69,143.65,13.03]
[1724350929851,6.1951,143.69,143.66,1.39188884]
[1724350930663,6.1951,143.69,143.66,46.39188884]
[1724350930964,6.1951,143.69,143.66,45.0]
[1724350932172,16.1236,143.7,143.67,13.03]
[1724350932345,16.1236,143.7,143.68,45.0]
[1724350932553,16.1236,143.7,143.67,13.03]
[1724350933379,16.1236,143.7,143.66,45.0]
[1724350938086,16.1236,143.7,143.63,20.0]
[1724350938276,16.1236,143.7,143.64,20.0]
[1724350938584,16.1236,143.7,143.63,33.03]
[1724350939405,17.86351707,143.7,143.63,13.03]
[1724350939581,16.1236,143.7,143.63,13.03]
[1724350939778,6.5843,143.69,143.61,41.05849677]
[1724350940784,6.5843,143.69,143.62,45.0]
[1724350941184,6.5843,143.69,143.63,13.03]
[1724350941382,6.5843,143.69,143.64,1.3920945]
[1724350941687,6.5843,143.69,143.65,1.39193256]
[1724350942397,6.5843,143.69,143.65,14.42193442]
[1724350942768,6.5843,143.69,143.67,13.03]
[1724350943195,16.1236,143.7,143.68,45.0]
[1724350945781,16.1236,143.7,143.66,13.03]
[1724350945988,16.1236,143.7,143.67,45.0]
[1724350946580,16.1236,143.7,143.64,13.03]
[1724350947103,16.1236,143.7,143.66,13.03]
[1724350948008,16.1236,143.7,143.67,45.0]
[1724350952303,16.1236,143.7,143.66,13.03]
[1724350952890,16.1236,143.7,143.64,13.03]
[1724350965247,29.1536,143.7,143.62,13.03]
[1724350965415,29.1536,143.7,143.63,45.0]
[1724350973642,13.03,143.68,143.61,15.29704247]
[1724350973801,15.2194,143.67,143.61,7.2685457]
[1724350974004,13.03,143.66,143.57,20.0]
[1724350974209,6.5324,143.65,143.58,13.03]
[1724350976430,6.5324,143.65,143.62,13.03]
[1724350976641,6.5324,143.65,143.63,1.39225032]
[1724350976938,6.5324,143.65,143.62,13.03]
[1724350977110,6.5324,143.65,143.63,45.0]
[1724350977311,6.5324,143.65,143.62,13.03]
[1724350977839,6.5324,143.65,143.63,45.0]
[1724350978209,6.5324,143.65,143.6,13.03]
[1724350978414,6.5324,143.65,143.59,13.03]
[1724350978930,6.5324,143.65,143.59,33.03]
[1724350979333,6.5324,143.65,143.61,13.03]
[1724350979542,6.5324,143.65,143.61,33.03]
[1724350979713,15.2194,143.67,143.63,13.03]
[1724350980036,15.2194,143.67,143.64,46.39210427]
[1724350980805,15.2194,143.67,143.64,45.0]
[1724350982438,15.2194,143.67,143.6,13.03]
[1724350982757,15.2194,143.67,143.61,20.0]
[1724350983716,15.2194,143.67,143.62,45.0]
[1724350984148,15.2194,143.67,143.62,59.42228449]
[1724350984343,15.2194,143.67,143.64,13.03]
[1724350984638,15.2194,143.67,143.65,1.39209517]
[1724350985718,15.2194,143.67,143.65,46.39209517]
[1724350986741,15.2194,143.67,143.65,45.0]
[1724350987920,6.2047,143.69,143.65,45.0]
[1724350988238,6.2047,143.69,143.66,1.39198363]
[1724350988433,6.2047,143.69,143.65,45.0]
[1724350998539,6.2047,143.69,143.62,13.03]
[1724350998726,6.2047,143.69,143.63,45.0]
[1724351001352,7.94498293,143.69,143.63,45.0]
[1724351001558,6.2047,143.69,143.63,45.0]
[1724351001755,6.2047,143.69,143.62,45.0]
[1724351003050,6.2047,143.69,143.62,58.03]
[1724351004866,13.03,143.66,143.62,45.0]
[1724351005730,22.2155,143.65,143.57,15.45646508]
[1724351006054,22.2155,143.65,143.57,55.76646252]
[1724351006241,22.2155,143.65,143.59,13.03]
[1724351007738,22.2155,143.65,143.6,45.0]
[1724351008671,22.2155,143.65,143.59,45.0]
[1724351010139,22.2155,143.65,143.6,14.42255876]
[1724351010352,22.2155,143.65,143.61,45.0]
[1724351010668,22.2155,143.65,143.62,1.39239412]
[1724351010962,22.2155,143.65,143.62,13.03]
[1724351011263,22.2155,143.65,143.63,45.0]
[1724351011856,22.2155,143.65,143.62,13.03]
[1724351012365,22.2155,143.65,143.6,13.03]
[1724351012547,22.2155,143.65,143.61,45.0]
[1724351019243,35.2455,143.65,143.58,13.03]
[1724351019542,35.2455,143.65,143.59,20.0]
[1724351020971,35.2455,143.65,143.6,45.0]
[1724351022253,22.2155,143.65,143.6,45.0]
[1724351026965,22.2155,143.65,143.61,1.39250797]
[1724351027168,22.2155,143.65,143.6,45.0]
[1724351036279,1.74049023,143.64,143.57,7.27899475]
[1724351036489,13.03,143.62,143.58,20.0]
[1724351036693,13.03,143.62,143.56,20.0]
[1724351037773,13.03,143.62,143.57,45.0]
[1724351038175,13.03,143.64,143.57,45.0]
[1724351038691,23.4290187,143.65,143.57,78.03]
[1724351038893,22.2155,143.65,143.57,78.03]
[1724351039191,22.2155,143.65,143.59,13.03]
[1724351039365,22.2155,143.65,143.58,13.03]
[1724351039567,22.2155,143.65,143.57,78.03]
[1724351040567,1.74069102,143.64,143.57,58.03]
[1724351040765,22.2155,143.65,143.57,78.03]
[1724351044313,22.2155,143.65,143.59,13.03]
[1724351044474,22.2155,143.65,143.6,45.0]
[1724351044668,35.2455,143.65,143.57,78.03]
[1724351044987,22.2155,143.65,143.57,78.03]
[1724351045188,22.2155,143.65,143.59,13.03]
[1724351045372,22.2155,143.65,143.6,45.0]
[1724351045573,22.2155,143.65,143.6,46.74280371]
[1724351046093,22.2155,143.65,143.6,45.0]
[1724351051988,35.2455,143.65,143.6,45.0]
[1724351052189,1.74083546,143.64,143.56,20.0]
[1724351052511,14.77088396,143.63,143.56,20.0]
[1724351052812,14.77088396,143.63,143.55,13.03]
[1724351053008,14.77088396,143.63,143.54,7.28094275]
[1724351053009,21.73318396,143.63,143.54,7.28094275]
[1724351053209,13.03,143.61,143.53,20.0]
[1724351053421,1.74124422,143.6,143.52,13.03]
[1724351054596,13.03,143.61,143.52,13.03]
[1724351054794,14.77135074,143.61,143.52,13.03]
[1724351055189,1.74134929,143.6,143.53,65.0]
[1724351055389,13.03,143.61,143.53,65.0]
[1724351058425,14.77137147,143.61,143.53,65.0]
[1724351059296,1.741372,143.6,143.53,65.0]
[1724351059500,35.8905,143.59,143.53,45.0]
[1724351059709,1.74155863,143.58,143.52,45.0]
[1724351059912,1.74155863,143.58,143.51,45.0]
[1724351060216,1.74155863,143.58,143.49,20.0]
[1724351060515,13.03,143.57,143.49,20.0]
[1724351061022,13.03,143.57,143.5,20.0]
[1724351062095,22.3295,143.56,143.5,20.0]
[1724351062297,1.74186535,143.55,143.47,40.26342104]
[1724351063112,14.77186535,143.55,143.47,40.26342104]
[1724351063416,14.77186535,143.55,143.47,33.03]
[1724351063621,14.77186535,143.55,143.48,45.0]
[1724351064320,14.77186535,143.55,143.46,7.28031261]
[1724351064321,13.03,143.55,143.46,7.28031261]
[1724351064503,13.03,143.55,143.47,20.0]
[1724351065597,13.03,143.55,143.48,45.0]
[1724351067423,35.3595,143.56,143.48,45.0]
[1724351067625,22.3295,143.56,143.49,14.42350404]
[1724351067926,22.3295,143.56,143.5,45.0]
[1724351071927,35.3595,143.56,143.5,45.0]
[1724351072124,35.3595,143.56,143.49,45.0]
[1724351073222,22.3295,143.56,143.5,13.03]
[1724351073434,22.3295,143.56,143.51,45.0]
[1724351080922,35.3595,143.56,143.47,40.31463728]
[1724351082333,35.3595,143.56,143.48,45.0]
[1724351085519,35.3595,143.56,143.49,14.42354035]
[1724351085520,22.3295,143.56,143.49,14.42354035]
[1724351085837,22.3295,143.56,143.5,45.0]
[1724351086609,22.3295,143.56,143.49,13.03]
[1724351086849,22.3295,143.56,143.5,45.0]
[1724351088337,22.3295,143.56,143.51,13.03]
[1724351088647,22.3295,143.56,143.52,45.0]
[1724351092931,22.3295,143.56,143.53,1.39321777]
[1724351093447,22.3295,143.56,143.53,14.42321777]
[1724351093647,22.3295,143.56,143.54,45.0]
[1724351095960,22.3295,143.56,143.48,20.0]
[1724351096157,22.3295,143.56,143.5,13.03]
[1724351096338,22.3295,143.56,143.51,20.0]
[1724351097744,22.3295,143.56,143.52,45.0]
[1724351099856,22.3295,143.56,143.47,7.28201817]
[1724351099857,13.03,143.54,143.47,7.28201817]
[1724351100444,14.77198479,143.54,143.47,7.28201817]
[1724351100643,13.03,143.54,143.44,33.03]
[1724351100844,13.03,143.54,143.45,7.28276578]
[1724351101236,22.3295,143.56,143.46,34.42372811]
[1724351101237,42.3253,143.56,143.46,34.42372811]
[1724351101438,35.3595,143.56,143.48,13.03]
[1724351102456,22.3295,143.56,143.48,33.03]
[1724351102643,22.3295,143.56,143.49,45.12549]
[1724351102861,22.3295,143.56,143.49,45.0]
[1724351106069,35.3595,143.56,143.49,45.0]
[1724351106271,13.03,143.54,143.45,20.31276578]
[1724351106437,13.03,143.54,143.46,21.74409141]
[1724351106763,13.03,143.54,143.46,20.0]
[1724351107568,13.03,143.54,143.47,45.0]
[1724351110548,13.03,143.54,143.47,58.03]
[1724351110751,35.3595,143.56,143.47,78.03]
[1724351111053,35.3595,143.56,143.49,13.03]
[1724351111248,35.3595,143.56,143.5,45.0]
[1724351111639,13.03,143.54,143.47,13.03]
[1724351111839,13.03,143.54,143.48,45.0]
[1724351114941,23.38501663,143.53,143.47,45.0]
[1724351115135,13.03,143.52,143.47,45.0]
[1724351115571,13.03,143.52,143.44,13.03]
[1724351115572,1.74233933,143.51,143.44,13.03]
[1724351115742,1.74233933,143.51,143.45,20.0]
[1724351116051,13.03,143.52,143.44,13.03]
[1724351116253,21.6428,143.53,143.44,13.03]
[1724351116746,21.6428,143.53,143.46,13.03]
[1724351116947,21.6428,143.53,143.47,45.0]
[1724351119273,21.6428,143.53,143.46,13.03]
[1724351123774,21.6428,143.53,143.47,45.0]
[1724351124663,21.6428,143.53,143.48,14.42372209]
[1724351124862,21.6428,143.53,143.49,45.0]
[1724351128481,21.6428,143.53,143.48,13.03]
[1724351132492,21.6428,143.53,143.46,13.03]
[1724351132695,21.6428,143.53,143.47,65.0]
[1724351132921,23.38507281,143.53,143.47,45.0]
[1724351133082,23.38507281,143.53,143.44,20.3156667]
[1724351133083,13.03,143.52,143.44,20.3156667]
[1724351133272,1.74232233,143.51,143.45,20.0]
[1724351134378,1.74232233,143.51,143.46,45.0]
[1724351136400,1.74232233,143.51,143.45,20.0]
[1724351136579,1.74232233,143.51,143.43,7.54590924]
[1724351136895,21.97,143.5,143.44,27.28719588]
[1724351137305,21.97,143.5,143.44,40.31719588]
[1724351137680,21.97,143.5,143.45,45.0]
[1724351149112,21.97,143.5,143.44,20.0]
[1724351151700,21.97,143.5,143.45,58.03]
[1724351156341,21.97,143.5,143.46,1.3938573]
[1724351157013,21.97,143.5,143.45,58.03]
[1724351158036,21.97,143.5,143.45,45.0]
[1724351161114,21.97,143.5,143.46,1.3939683]
[1724351162429,21.97,143.5,143.45,58.03]
[1724351166122,21.97,143.5,143.47,13.03]
[1724351167133,22.7393,143.55,143.48,46.39375299]
[1724351167334,22.7393,143.55,143.49,13.03]
[1724351167536,22.7393,143.55,143.5,45.0]
[1724351168135,22.7393,143.55,143.47,13.03]
[1724351168356,22.7393,143.55,143.48,45.0]
[1724351169051,22.7393,143.55,143.48,46.39360142]
[1724351169749,22.7393,143.55,143.48,45.0]
[1724351176445,37.51122409,143.55,143.48,45.0]
[1724351176653,1.74192409,143.54,143.48,45.0]
[1724351176949,35.7693,143.55,143.48,45.0]
[1724351184263,35.7693,143.55,143.49,13.03]
[1724351184264,22.7393,143.55,143.49,13.03]
[1724351184466,22.7393,143.55,143.5,45.25098]
[1724351184633,22.7393,143.55,143.5,45.0]
[1724351185762,22.7393,143.55,143.51,13.03]
[1724351185942,22.7393,143.55,143.52,45.0]
[1724351186145,22.7393,143.55,143.52,46.393239]
[1724351187659,22.6437,143.6,143.53,13.03]
[1724351187833,22.6437,143.6,143.54,1.39313049]
[1724351188335,22.6437,143.6,143.53,13.03]
[1724351194954,35.6737,143.6,143.52,58.03]
[1724351195345,13.03,143.58,143.52,45.0]
[1724351196759,42.6376,143.6,143.52,45.0]
[1724351201346,42.6376,143.6,143.52,46.39326198]
[1724351201347,35.6737,143.6,143.52,46.39326198]
[1724351201667,35.6737,143.6,143.53,13.03]
[1724351201865,35.6737,143.6,143.54,1.39315274]
[1724351204159,22.6437,143.6,143.55,13.03]
[1724351204359,22.6437,143.6,143.56,1.3923914]
[1724351204553,22.6437,143.6,143.55,13.03]
[1724351204881,22.6437,143.6,143.56,45.0]
[1724351205767,22.6437,143.6,143.53,13.03]
[1724351205963,22.6437,143.6,143.54,45.0]
[1724351209191,22.6437,143.6,143.55,13.03]
[1724351209755,22.6437,143.6,143.56,46.39290606]
[1724351210060,22.6437,143.6,143.56,45.0]
[1724351214262,22.6437,143.6,143.53,13.03]
[1724351214461,22.6437,143.6,143.54,45.0]
[1724351215085,24.38505823,143.6,143.54,45.0]
[1724351215462,22.6437,143.6,143.54,45.0]
[1724351216157,1.7413212,143.59,143.54,45.0]
[1724351216362,42.6375,143.6,143.51,13.03]
[1724351216559,1.74149371,143.59,143.51,13.03]
[1724351216804,13.03,143.58,143.49,27.28217509]
[1724351216967,1.74157909,143.57,143.49,40.31217509]
[1724351217362,22.452,143.56,143.49,7.28217509]
[1724351217666,22.452,143.56,143.49,20.31217509]
[1724351218075,22.452,143.56,143.5,20.0]
[1724351218981,22.452,143.56,143.51,45.0]
[1724351220973,22.452,143.56,143.5,45.0]
[1724351221803,22.452,143.56,143.5,58.03]
[1724351224596,22.452,143.56,143.52,13.03]
[1724351224793,22.452,143.56,143.53,45.0]
[1724351226777,22.452,143.56,143.54,1.74374557]
[1724351226977,22.452,143.56,143.55,1.74374557]
[1724351227379,22.452,143.56,143.53,45.0]
[1724351227601,22.452,143.56,143.55,1.74377224]
[1724351230987,22.452,143.56,143.55,1.74377101]
[1724351238094,22.452,143.56,143.55,1.74384936]
[1724351241843,22.85961034,143.6,143.55,1.74384936]
[1724351242139,22.85961034,143.6,143.56,1.74384936]
[1724351242341,22.85961034,143.6,143.53,13.03]
[1724351242507,22.85961034,143.6,143.54,46.74377015]
[1724351242712,22.85961034,143.6,143.55,1.74377015]
[1724351243055,22.85961034,143.6,143.54,45.0]
[1724351243056,22.85961034,143.6,143.56,1.74377015]
[1724351243223,22.85961034,143.6,143.54,45.0]
[1724351243444,22.85961034,143.6,143.55,1.7437699]
[1724351243744,22.85961034,143.6,143.56,1.7437699]
[1724351243931,28.6164,143.6,143.54,45.0]
[1724351244129,29.82140134,143.6,143.55,1.74380858]
[1724351244305,29.82140134,143.6,143.56,1.74380858]
[1724351244510,29.82140134,143.6,143.54,45.0]
[1724351244734,29.82140134,143.6,143.55,1.74380518]
[1724351245033,29.82140134,143.6,143.56,1.74380518]
[1724351245243,29.82140134,143.6,143.54,45.0]
[1724351245415,29.82140134,143.6,143.55,1.74377009]
[1724351245615,29.82140134,143.6,143.54,45.0]
[1724351245616,29.82140134,143.6,143.56,1.74377009]
[1724351245818,28.6164,143.6,143.54,45.0]
[1724351246032,28.6164,143.6,143.55,1.74376941]
[1724351246220,28.6164,143.6,143.56,1.74376941]
[1724351246420,28.6164,143.6,143.54,45.0]
[1724351246626,28.6164,143.6,143.55,1.7437699]
[1724351246844,21.6526,143.6,143.56,1.7437699]
[1724351247043,21.6526,143.6,143.57,1.7437699]
[1724351247241,21.6526,143.6,143.54,45.0]
[1724351247538,21.6526,143.6,143.55,14.77369098]
[1724351247742,21.6526,143.6,143.56,1.74367538]
[1724351247947,21.6526,143.6,143.57,1.74367538]
[1724351248122,21.6526,143.6,143.55,13.03]
[1724351248332,21.6526,143.6,143.56,1.74369172]
[1724351248639,21.6526,143.6,143.57,1.74369172]
[1724351248939,21.6526,143.6,143.55,13.03]
[1724351249124,21.6526,143.6,143.56,1.74371058]
[1724351249309,21.6526,143.6,143.57,1.74371058]
[1724351249506,21.6526,143.6,143.55,13.03]
[1724351249741,21.6526,143.6,143.56,1.74371008]
[1724351249939,21.6526,143.6,143.57,1.74371008]
[1724351250144,21.6526,143.6,143.55,13.03]
[1724351250337,21.6526,143.6,143.56,1.74371008]
[1724351250518,21.6526,143.6,143.57,1.74371008]
[1724351250721,21.6526,143.6,143.55,13.03]
[1724351250922,21.6526,143.6,143.56,1.74369099]
[1724351251144,21.6526,143.6,143.57,1.74369099]
[1724351251315,21.6526,143.6,143.54,45.0]
[1724351251316,30.35758532,143.6,143.54,45.0]
[1724351251519,13.03,143.59,143.55,1.74378969]
[1724351251733,1.74140802,143.58,143.56,1.74378969]
[1724351251944,1.74140802,143.58,143.54,45.0]
[1724351252250,1.74140802,143.58,143.55,1.74376696]
[1724351252413,1.74140802,143.58,143.56,1.74376696]
[1724351252614,1.74140802,143.58,143.54,45.0]
[1724351252810,1.74140802,143.58,143.55,1.74377063]
[1724351253016,1.7414003,143.58,143.56,1.74377063]
[1724351253236,19.9943,143.59,143.51,13.03]
[1724351253439,19.9943,143.59,143.52,46.74378121]
[1724351253746,19.9943,143.59,143.53,1.74378121]
[1724351253932,19.9943,143.59,143.54,1.74378121]
[1724351254318,19.9943,143.59,143.52,45.0]
[1724351254319,13.03,143.57,143.55,1.74378121]
[1724351254545,13.03,143.57,143.49,35.82665962]
[1724351254546,1.74170184,143.56,143.49,35.82665962]
[1724351254846,1.74170184,143.56,143.5,66.74393971]
[1724351255048,1.74170184,143.56,143.51,1.74393971]
[1724351255248,1.74170184,143.56,143.52,1.74393971]
[1724351255457,22.5215,143.55,143.53,1.74393971]
[1724351255615,1.74193528,143.54,143.47,13.03]
[1724351255822,1.74193528,143.54,143.48,1.74418957]
[1724351256120,1.74193528,143.54,143.49,1.74418957]
[1724351256319,1.74193528,143.54,143.5,1.74418957]
[1724351256623,1.74193528,143.54,143.51,1.74418957]
[1724351256823,1.74193528,143.54,143.52,1.74418957]
[1724351257044,1.74193528,143.54,143.47,20.0]
[1724351257218,42.5177,143.55,143.47,20.0]
[1724351257421,42.5177,143.55,143.48,1.74419268]
[1724351257617,42.5177,143.55,143.49,1.74419268]
[1724351257942,42.5177,143.55,143.5,1.74419268]
[1724351258145,1.74206658,143.54,143.51,1.74419268]
[1724351258444,42.5177,143.55,143.52,1.74419268]
[1724351258649,1.7420621,143.54,143.48,45.0]
[1724351258863,42.5177,143.55,143.49,1.74430222]
[1724351259031,1.74206782,143.54,143.5,1.74430222]
[1724351259347,1.74206809,143.54,143.51,1.74430222]
[1724351259552,1.74206809,143.54,143.48,45.0]
[1724351259754,1.74206809,143.54,143.49,1.74430271]
[1724351259927,1.74206809,143.54,143.5,1.74430271]
[1724351260249,1.74206809,143.54,143.51,1.74430271]
[1724351260455,1.74206809,143.54,143.47,45.0]
[1724351260824,1.74206809,143.54,143.48,1.7443037]
[1724351261155,1.74206809,143.54,143.49,1.7443037]
[1724351261321,1.74206809,143.54,143.5,1.7443037]
[1724351261521,1.74206809,143.54,143.51,1.7443037]
[1724351261747,1.74206809,143.54,143.47,45.0]
[1724351261954,1.74206809,143.54,143.48,1.74430271]
[1724351262141,1.74206809,143.54,143.49,1.74430271]
[1724351262361,1.74206809,143.54,143.5,1.74430271]
[1724351262653,1.74206809,143.54,143.51,1.74430271]
[1724351262954,1.74206809,143.54,143.47,45.0]
[1724351263155,1.74206809,143.54,143.48,1.74430271]
[1724351263359,8.70876809,143.54,143.49,1.74430271]
[1724351263538,19.9971,143.53,143.5,1.74430271]
[1724351263725,22.3645,143.51,143.44,13.03]
[1724351263927,22.3645,143.51,143.45,1.74464311]
[1724351264148,22.3645,143.51,143.46,1.744643]
[1724351264462,24.10700501,143.51,143.47,1.744643]
[1724351264665,22.3645,143.51,143.44,13.03]
[1724351264951,22.3645,143.51,143.45,1.74472432]
[1724351265159,22.3645,143.51,143.46,1.74472432]
[1724351265343,22.3645,143.51,143.44,13.03]
[1724351265532,22.3645,143.51,143.45,1.74472591]
[1724351265729,22.3645,143.51,143.46,1.74472591]
[1724351266040,22.3645,143.51,143.44,13.03]
[1724351266239,22.3645,143.51,143.45,1.74472541]
[1724351266560,22.3645,143.51,143.46,1.74472541]
[1724351266764,22.3645,143.51,143.44,13.03]
[1724351267064,22.3645,143.51,143.45,1.74472541]
[1724351267248,22.3645,143.51,143.46,1.74472541]
[1724351267563,22.3645,143.51,143.45,45.0]
[1724351267735,22.3645,143.51,143.46,1.74464711]
[1724351268079,22.3645,143.51,143.45,45.0]
[1724351268248,22.3645,143.51,143.46,14.77463832]
[1724351268421,6.3148,143.51,143.48,13.03]
[1724351268629,6.3148,143.51,143.48,16.16835429]
[1724351268930,6.3148,143.51,143.48,14.42371597]
[1724351269363,6.3148,143.51,143.48,16.16835429]
[1724351269560,6.3148,143.51,143.48,13.03]
[1724351269973,6.3148,143.51,143.48,14.77463832]
[1724351270179,6.3148,143.51,143.48,13.03]
[1724351270344,16.2689,143.54,143.48,13.03]
[1724351270345,22.4639,143.54,143.49,1.39370076]
[1724351270552,22.4639,143.54,143.49,46.74463832]
[1724351270768,22.4639,143.54,143.49,45.0]
[1724351273278,22.4639,143.54,143.49,46.39350362]
[1724351274754,22.4639,143.54,143.49,45.0]